Cogmind - Beta 13 @@@ ROGUE MODE // 2024.07.28 @ 23:07:50 Player: Dzuchun Result: Destroyed by G-47 Trooper with Particle Gun Performance ------------- Evolutions (2) 1000 Regions Visited (3) 600 Robots Destroyed (26) 130 Value Destroyed (869) 869 Prototype IDs (1) 20 Alien Tech Used (0) 0 Bonus (0) 0 TOTAL SCORE: 2619 Bonus ------- None Cogmind --------- Core Integrity 0/550 Matter 245/300 Energy 9/100 System Corruption 0% Temperature Warning (346) Movement Core (100) Ox1 Location -8/Materials Parts ------- > --- POWER (1) -------- (None) > --- PROPULSION (3) --- (None) > --- UTILITY (3) ------ Visual Processing Unit Improved Weapon Shielding > --- WEAPON (4) ------- Field Laser > --- INVENTORY (5) ---- Terrain Scanner Peak State ------------ > --- POWER ------------ Light Nuclear Core > --- PROPULSION ------- Improved Treads Improved Treads Improved Treads > --- UTILITY ---------- High-capacity Storage Unit Visual Processing Unit > --- WEAPON ----------- Pulse Rifle Light Assault Rifle Light Assault Rifle Mini Grenade Launcher > --- INVENTORY -------- Ion Engine Improved Treads Aluminum Leg Hover Unit Flight Unit Flight Unit Heat Sink Improved Heat Sink Cooling System Medium Matter Pod Signal Interpreter Terrain Scanner ECM Suite Field Recycling Unit Small Laser Mining Laser [Rating: 21] Favorites ----------- Power Ion Engine Engine Ion Engine Power Core Light Nuclear Core Propulsion Aluminum Leg Treads Improved Treads Leg Aluminum Leg Wheel Wheel Hover Unit Hover Unit Flight Unit Flight Unit Utility High-capacity Storage Unit Device ECM Suite Storage High-capacity Storage Unit Processor Visual Processing Unit Protection Light Armor Plating Weapon Light Assault Rifle Energy Gun Small Laser Ballistic Gun Light Assault Rifle Launcher Mini Grenade Launcher Special Weapon Mining Laser Build | -11 -10 -9 -8 ------- Run | Yrd Mat Mat Mat Slots Evolved 4 | . . 2 2 Power . | . . . . Propulsion 1 | . . 1 . Utility 1 | . . . 1 Weapon 2 | . . 1 1 Parts Attached 86 | 7 25 33 21 Power 15 | 1 8 2 4 Engine 14 | 1 8 1 4 Core 1 | . . 1 . Reactor . | . . . . Propulsion 37 | 4 6 19 8 Treads 16 | . . 12 4 Leg 13 | 3 6 4 . Wheel 1 | 1 . . . Hover 1 | . . . 1 Flight 6 | . . 3 3 Utility 17 | 1 6 5 5 Device 9 | 1 3 3 2 Storage 2 | . 2 . . Processor 2 | . . 1 1 Hackware . | . . . . Protection 4 | . 1 1 2 Artifact . | . . . . Weapon 17 | 1 5 7 4 Energy Gun 9 | . 4 2 3 Energy Cannon . | . . . . Ballistic Gun 5 | 1 . 4 . Ballistic Cannon . | . . . . Launcher 1 | . . 1 . Special Weapon 2 | . 1 . 1 Impact Weapon . | . . . . Slashing Weapon . | . . . . Piercing Weapon . | . . . . Special Melee Weapon . | . . . . Unidentified Prototypes 1 | . . . 1 Corrupted Parts 3 | . . 3 . System Corruption 9 | . . 9 . Parts Lost 20 | . 3 . 17 Power 5 | . 1 . 4 Propulsion 6 | . 1 . 5 Utility 2 | . . . 2 Weapon 7 | . 1 . 6 Highest Loss Streak 10 | . 3 . 10 To Critical Strikes . | . . . . Average Slot Usage (%) 87 | . 93 96 51 Engine 9 | . 14 6 2 Core 2 | . . 4 2 Treads 11 | . . 25 9 Leg 14 | . 27 5 . Device 9 | . 12 7 3 Storage 9 | . 10 11 3 Processor 2 | . . 3 10 Protection 1 | . 1 . 3 Energy Gun 15 | . 20 14 3 Ballistic Gun 8 | . 2 17 6 Special Weapon 1 | . 3 . . Naked Turns . | . . . . Heaviest Build 57 | 5 50 57 51 Greatest Support 69 | 20 20 69 69 Greatest Overweight (x) 4 | . 4 2 2 Average Overweight (x) . | . 1 . . Largest Inventory Capacity 20 | 5 20 20 20 Average Capacity 15 | 5 15 20 10 Most Carried 20 | 5 11 20 19 Average Carried 10 | 2 7 17 8 Final Capacity 20 | 5 20 20 5 Final Carried 19 | 5 11 19 1 Class Distribution -------------------- 58% | Mutant 17% | Scavenger-Skirmisher 8% | Skirmisher 7% | Scavenger-Gunner 3% | Scavenger-Mutant Dominant Class ---------------- Mutant | -10/Materials Scavenger-Skirmisher | -9/Materials Mutant | -8/Materials Resources | -11 -10 -9 -8 ----------- Run | Yrd Mat Mat Mat Matter Collected 1160 | 272 347 377 164 Remotely . | . . . . Salvage Created 980 | 33 435 348 164 Parts 68 | 2 29 27 10 Haulers Intercepted . | . . . . Recyclers Shooed . | . . . . Parts Field Recycled . | . . . . Retrieved Matter . | . . . . Parts Self-Destructed . | . . . . Prevented . | . . . . Kills | -11 -10 -9 -8 ------- Run | Yrd Mat Mat Mat Combat Hostiles Destroyed 24 | 1 10 8 5 Melee 1 | . . . 1 Guns 21 | 1 9 7 4 Cannons 1 | . 1 . . AOE 1 | . . 1 . Classes Destroyed 5 | 1 1 2 1 Watcher 2 | . 1 1 . Swarmer 4 | . . 3 1 Grunt 15 | 1 10 2 2 Sentry 4 | . . 3 1 Hunter 1 | . . . 1 Best Kill Streak 5 | 1 3 5 3 Combat Bots Only 5 | 1 3 5 3 Max Kills in Single Turn 2 | 1 1 2 1 Gunslinging 1 | . . 1 . Exploded 1 | . . 1 . Melee 1 | . . . 1 Uniques/NPCs Destroyed . | . . . . Combat | -11 -10 -9 -8 -------- Run | Yrd Mat Mat Mat Hostile Shots Fired 348 | 3 119 25 201 Missed 107 | 2 39 8 58 Damage Taken 3135 | 10 839 235 2051 Core 787 | . 216 9 562 Absorbed by Shields . | . . . . Redirected to Shielding 101 | . 12 . 89 Core Remaining (%) 70 | 100 13 97 . Volleys Fired 122 | 2 57 19 44 Largest 3 | 1 2 3 2 Hottest 163 | 20 140 125 163 Shots Fired 223 | 2 102 57 62 Gun 216 | 2 96 57 61 Cannon . | . . . . Launcher . | . . . . Special 7 | . 6 . 1 Kinetic 96 | 2 23 23 48 Thermal 82 | . 64 4 14 Explosive . | . . . . Electromagnetic 45 | . 15 30 . Robot Hit Streak 13 | 2 6 13 11 Robot Miss Streak 5 | . 5 2 2 Penetration Max . | . . . . Secondary Targets 3 | . . 3 . Max Gunslinging Chain 1 | . . 1 . Shots Hit Robots 106 | 2 44 32 28 Core Hits 53 | 2 20 14 17 Critical Kills . | . . . . Critical Parts Destroyed . | . . . . Critical Strikes 2 | . 2 . . Burn 1 | . 1 . . Corrupt 1 | . 1 . . Melee Attacks . | . . . . Impact . | . . . . Slashing . | . . . . Piercing . | . . . . Sneak Attacks . | . . . . Combat Hostiles . | . . . . Follow-up Attacks . | . . . . Damage Inflicted 1296 | 16 506 450 324 Guns 1225 | 16 482 407 320 Cannons . | . . . . Explosions 43 | . . 43 . Melee . | . . . . Ramming 4 | . . . 4 Kinetic 420 | 16 103 163 138 Thermal 534 | . 285 67 182 Explosive . | . . . . Electromagnetic 338 | . 118 220 . Impact . | . . . . Slashing . | . . . . Piercing . | . . . . Highest Corruption 11 | . 3 11 . Average Corruption 6 | . 2 8 . Corruption Purged . | . . . . Corruption Blocked . | . . . . Effects 27 | . 7 20 . Message Errors 6 | . 2 4 . Matter Fused 10 | . 1 9 . Heat Flow Errors 1 | . . 1 . Energy Discharges 3 | . . 3 . Data Loss (minor) 4 | . 2 2 . Data Loss (major) 2 | . 1 1 . Misfires 1 | . 1 . . Overload Shots . | . . . . Overflow Damage . | . . . . Projectiles . | . . . . Explosions . | . . . . Melee . | . . . . Knockbacks . | . . . . Impact . | . . . . Kinetic . | . . . . Secondary . | . . . . Self-Inflicted Damage 30 | . . 30 . Shots 1 | . . 1 . Rammed 5 | . . . 5 Targets Rammed 6 | . . . 6 Kicked . | . . . . Crushed 1 | . . . 1 Highest Temperature 337 | 6 110 283 337 Average Temperature 59 | 6 25 94 131 Received Heat Transfer 1128 | 6 354 57 711 Effects 1 | . . . 1 Energy Bleed 1 | . . . 1 Siege Activations . | . . . . Robots Corrupted . | . . . . Combat Hostiles . | . . . . Parts Fried 1 | . . 1 . Impact Corruptions . | . . . . Robots Melted . | . . . . Combat Hostiles . | . . . . Parts Melted 2 | . 2 . . Heat Transferred 1290 | . 783 100 407 Parts Sabotaged . | . . . . Parts Stolen . | . . . . Parts Stripped . | . . . . Power Chain Reactions 1 | . . 1 . Alert | -11 -10 -9 -8 ------- Run | Yrd Mat Mat Mat Peak Influence 232 | 20 168 232 120 Initial 38 | . 13 38 34 Average 69 | 12 65 100 38 Maximum Alert Level 1 | . . 1 . Low Security (%) 97 | 100 100 94 100 Level 1 2 | . . 5 . Level 2 . | . . . . Level 3 . | . . . . Level 4 . | . . . . Level 5 . | . . . . High Security . | . . . . Max Security . | . . . . Squads Dispatched 7 | . 3 . 4 Investigation 4 | . 2 . 2 Extermination . | . . . . Reinforcement 3 | . 1 . 2 Assault . | . . . . Garrison . | . . . . Intercept . | . . . . Searches Triggered . | . . . . Construction Impeded . | . . . . Haulers Reinforced . | . . . . Active Scanning Responses . | . . . . Cargo Convoy Interrupts . | . . . . Stealth | -11 -10 -9 -8 --------- Run | Yrd Mat Mat Mat Distress Signals 5 | . 3 . 2 Communications Jammed . | . . . . Distress Signals . | . . . . Times Spotted 51 | 1 24 9 17 Peak Tracking Total 11 | 1 5 3 11 Tactical Retreats 6 | . 4 1 1 Traps | -11 -10 -9 -8 ------- Run | Yrd Mat Mat Mat Traps Triggered 7 | . 2 4 1 Indirectly . | . . . . Trap Hack Attempts . | . . . . Triggered . | . . . . Disarmed . | . . . . Reprogrammed . | . . . . Reused . | . . . . Traps Extracted . | . . . . Installed . | . . . . Triggered . | . . . . Machines | -11 -10 -9 -8 ---------- Run | Yrd Mat Mat Mat Machines Disabled . | . . . . Max in Single Turn . | . . . . Machines Repaired . | . . . . Machines Dismantled . | . . . . Machines Sabotaged . | . . . . Overloaded Fab Kills . | . . . . Hacking | -11 -10 -9 -8 --------- Run | Yrd Mat Mat Mat Machines Accessed 7 | . 4 2 1 Terminals 6 | . 4 1 1 Fabricators . | . . . . Repair Stations . | . . . . Recycling Units 1 | . . 1 . Scanalyzers . | . . . . Garrison Access . | . . . . Total Hacks 28 | . 14 9 5 Successful 13 | . 6 6 1 Failed 15 | . 8 3 4 Catastrophic 4 | . 1 1 2 Database Lockouts . | . . . . Manual . | . . . . Terminals 21 | . 14 2 5 Fabricators . | . . . . Repair Stations . | . . . . Recycling Units 7 | . . 7 . Scanalyzers . | . . . . Garrison Access . | . . . . Terminal Hacks 7 | . 6 . 1 Record 1 | . 1 . . Alert Level 1 | . 1 . . Locate Traps 1 | . 1 . . Dispatch Records 1 | . 1 . . Recall Investigation 1 | . 1 . . Recall Reinforcements 1 | . . . 1 Zone Layout 1 | . 1 . . Fabricator Hacks . | . . . . Repair Station Hacks . | . . . . Recycling Unit Hacks 6 | . . 6 . Recycle Component 2 | . . 2 . Process 2 | . . 2 . Retrieve Matter 1 | . . 1 . Retrieve Components 1 | . . 1 . Scanalyzer . | . . . . Garrison Access Hacks . | . . . . Unauthorized Hacks . | . . . . Terminals . | . . . . Fabricators . | . . . . Repair Stations . | . . . . Recycling Units . | . . . . Scanalyzers . | . . . . Garrison Access . | . . . . Data Cores Recovered . | . . . . Used . | . . . . Hacking Detections 6 | . 4 1 1 Full Trace Events 4 | . 3 . 1 Feedback Events . | . . . . Feedback Blocked . | . . . . Robot Schematics Acquired . | . . . . Robots Built . | . . . . Authchips . | . . . . Time . | . . . . Total Robot Build Rating . | . . . . Part Schematics Acquired . | . . . . Parts Built . | . . . . Authchips . | . . . . Time . | . . . . Total Part Build Rating . | . . . . Parts Repaired . | . . . . Time . | . . . . Parts Recycled 2 | . . 2 . Recycled Matter 43 | . . 43 . Retrieved Matter 43 | . . 43 . Retrieved Components . | . . . . Parts Scanalyzed . | . . . . Part Schematics Acquired . | . . . . Parts Damaged . | . . . . Bothacking | -11 -10 -9 -8 ------------ Run | Yrd Mat Mat Mat Used RIF Installer . | . . . . Robots Hacked . | . . . . Non-combat . | . . . . Combat . | . . . . Robot Hacks Applied . | . . . . Relay Couplers Released . | . . . . Fabnet Peak Effective % . | . . . . Robots Rewired . | . . . . Allies Hacked . | . . . . Hacks Repelled . | . . . . Allies | -11 -10 -9 -8 -------- Run | Yrd Mat Mat Mat Total Allies . | . . . . Largest Group . | . . . . Highest-Rated Group . | . . . . Highest-Rated Ally . | . . . . Total Orders . | . . . . Ally Attacks . | . . . . Total Damage . | . . . . Kills . | . . . . Allies Corrupted . | . . . . Allies Melted . | . . . . Intel | -11 -10 -9 -8 ------- Run | Yrd Mat Mat Mat Robot Analysis Total . | . . . . Derelict Logs Recovered . | . . . . Drone Launches . | . . . . Drone Recoveries . | . . . . Exploration | -11 -10 -9 -8 ------------- Run | Yrd Mat Mat Mat Turns Passed 2837 | 227 1153 1002 455 Spaces Moved 1324 | 190 422 442 270 Core 43 | 42 . . 1 Treads 433 | . . 365 68 Legs 647 | 148 422 77 . Wheels . | . . . . Hover . | . . . . Flight 201 | . . . 201 Fastest Speed 37 | 50 120 160 37 Average Speed 163 | 104 211 178 103 Slowest Speed 400 | 120 400 260 240 Overloaded Moves . | . . . . Propulsion Burnouts . | . . . . Robots Hopped 6 | . . . 6 Cave-ins Triggered . | . . . . Exploration Rate (%) 22 | 9 38 22 19 Regions Visited 3 Branch Regions . Pre-discovered Areas . | . . . . Known Exits Taken . | . . . . Unknown Exits Taken 3 | 1 1 1 . Scrap Searched . | . . . . Spaces Dug 4 | . 4 . . Terrain Destroyed 9 | . 5 4 . Melee . | . . . . Projectile 5 | . 5 . . AOE 4 | . . 4 . Terrain Rammed . | . . . . Walls Destroyed . | . . . . Machines Disabled . | . . . . Actions | -11 -10 -9 -8 --------- Run | Yrd Mat Mat Mat Total 1782 | 217 574 607 384 Wait 137 | 8 33 72 24 Move 1310 | 189 421 441 259 Hop 5 | . . . 5 Pick Up 72 | 9 24 28 11 Fast Attach 4 | 1 . . 3 Attach 32 | 6 7 9 10 Detach 5 | 2 1 2 . Swap 50 | . 18 24 8 Drop 39 | . 13 12 14 Fire 122 | 2 57 19 44 Melee . | . . . . Ram . | . . . . Kick . | . . . . Crush 6 | . . . 6 Escape Stasis . | . . . . Rewire . | . . . . Trap . | . . . . Miscellaneous . | . . . . Route ------- -11/Scrapyard -10/Materials -9/Materials -8/Materials History --------- Turn | Location | Event 2 | -11/Scrapyard | Met Revision 17 76 | -11/Scrapyard | Discovered new exit (range 8) 228 | -11/Scrapyard | Entered Materials 331 | -10/Materials | Build established: Mutant 840 | -10/Materials | Discovered new exit (range 16) 869 | -10/Materials | Core integrity fell below 50% 905 | -10/Materials | Lost 3 parts (1p1n1w) 1238 | -10/Materials | Core integrity fell below 20% 1381 | -10/Materials | Entered another Materials area 1381 | -9/Materials | Evolved 2 slots: Propulsion x1, Weapon x1 2181 | -9/Materials | Discovered new exit (range 18) 2254 | -9/Materials | System corruption reached 10% 2383 | -9/Materials | Entered another Materials area 2383 | -8/Materials | Evolved 2 slots: Utility x1, Weapon x1 2412 | -8/Materials | Build established: Scavenger-Skirmisher 2601 | -8/Materials | Lost 10 parts (2p3n5w) 2793 | -8/Materials | Core integrity fell below 50% 2830 | -8/Materials | Core integrity fell below 20% 2838 | -8/Materials | Destroyed by G-47 Trooper with Particle Gun Last Messages --------------- 02809_ ALERT: Alarm triggered, dispatching investigation squad. 02810_ Terminal unresponsive. 02813_ Flight Unit destroyed. 02814_ S-10 Pest destroyed. 02819_ U-05 Engineer lays Concrete. 02820_ Lgt. Ion Engine destroyed. 02821_ U-05 Engineer lays Concrete. 02824_ G-47 Trooper destroyed. 02829_ Critical hit (Burn: +37). 02829_ K-01 Serf collects debris. 02830_ Flight Unit destroyed. 02830_ Critical hit (Burn: +37). 02833_ K-01 Serf collects debris. 02834_ R-06 Scavenger collects Flight Unit. 02835_ Mining Laser destroyed. 02836_ K-01 Serf collects debris. 02838_ Overheating: Energy bleed (-6). 02838_ G-47 Trooper destroyed. [Achievement: First Step to Greatness] Map ----- +----------------------------------------------------+ | ??????????#" # """ T #????????????????? | | ??????????#" # """"" #????????????????? | | ??????????#" """ # """"" #????????????????? | | ??????????#T """"" # """"" #????????????????? | | ??????????#" """"" # """ #????????????????? | | ??????????#" """"" # ?????????????????? | | ??????????#" """ #?? ???????????????????? | | ??????????## #####+################?????? | | ???????????# ??? | | ???????????# % ??? | | ???????????# """ ??? | | ???????????# ###+######## """ ########?????? | | ???????????####### #???# """ #????????????? | | ?????????????????# "S #???# #????????????? | | ?????????????????# "" !#???# #????????????? | | ?????????????????# " #???# """ [#????????????? | | ?????????????????# #???# """ #????????????? | | ?????????????????# #???# """ #????????????? | | ?????????????????########???# #????????????? | | ????????????????????????????# #????????????? | | ????????????????????????????# """ #????????????? | | ?????????????????????######## """ ######### #? | | ?????????????????????# # """ #? | | ?????????????????????# k #g #? | | ?????????????????????#"" %gg #? | | ?????????????????????#"T @%r# #########+#########? | | ?????????????????????#"" = # #????????? ???????? | | ?????????????????????# ! # #??????????? ?????? | | ?????????????????????########/#???????????? #????? | | ???????????????????????????? ??????????????????? | | ???????????????????????????? ??????????????????? | | ???????????????????????????? ??????????????????? | | ???????????????????????????? ??????????????????? | | ??????????????????????????? ?????????????????? | | ??????????????????????????? ?????????????????? | | ??????????????????????????? ?????????????????? | | ??????????????????????????? ?????????????????? | | ??????????????????????????# ????????????????? | | ??????????????????????????#####+#????????????????? | | ?????????????????????????????????????????????????? | | ?????????????????????????????????????????????????? | | ?????????????????????????????????????????????????? | | ?????????????????????????????????????????????????? | | ?????????????????????????????????????????????????? | | ?????????????????????????????????????????????????? | | ?????????????????????????????????????????????????? | | ?????????????????????????????????????????????????? | | ?????????????????????????????????????????????????? | | ?????????????????????????????????????????????????? | | ?????????????????????????????????????????????????? | +----------------------------------------------------+ Best States ------------- Heat Dissipation 45 Energy Generation 14 Energy Capacity 280 Matter Stores 300 Matter Capacity 300 Sight Range 18 Terrain Scan Range 14 Terrain Scan Density 10 ECM Strength 1 Armor Coverage 225 Propulsion Shielding 33 Weapon Shielding 66 Evasion (%) 62 Recoil Reduction 3 Item Schematics ----------------- None Robot Schematics ------------------ None Fabricated ------------ Nothing Alien Tech Used ----------------- None Achievements -------------- Crack Shot First Step to Greatness GoHome() One Hack Too Far Risk Taker Storm Trooper System Compromised Uninvited Guest Challenges ------------ None Game ------ Seed MassDispersionSuite Manual? 0 Play Time 01:40:46 Cumulative 1.6 hours Start 2024.07.28 @ 21:08:09 End 2024.07.28 @ 23:07:50 Sessions 1 Manual Loads 0 Difficulty Rogue Special Mode None Game No. 1 Rogue 1 Adventurer 0 Explorer 0 Win Type - Total 0 Types 0/0/0/0/0/0/0/0/0 Lore% 0 Gallery% 3 Achievement% 3 Wizard Run 0 Options --------- Layout 1 ASCII 0 Keyboard 1 Movement Vi Keybinds 0 Fullscreen 1 Font 24/Proggy Map View 50x35 Zoom Use 0% Tactical HUD 1 Map Filters NONE Filters NONE Steam 1 RUN: fc8f05c1-5a33-4324-af27-7371493a4bba